[Event "Early Titled Tuesday Blitz | February 8 2022"]
[White "Odegov, Artem"]
[Black "Toncheva, Nadya"]
[WhiteFideId "34183644"]
[BlackFideId "2924056"]
[WhiteElo "2277"]
[BlackElo "1920"]
[Result "1-0"]
[Round "04"]
[TimeControl "180+1"]
[Date "2022.02.08"]
[WhiteClock "0:01:10"]
[BlackClock "0:00:09"]

1. d4 {[%clk 0:03:00]}  d5 {[%clk 0:03:00]} 2. c4 {[%clk 0:03:01]}  c6 {[%clk 0:03:00]} 3. Nf3 {[%clk 0:03:02]}  Nf6 {[%clk 0:03:00]} 4. Nc3 {[%clk 0:03:02]}  dxc4 {[%clk 0:03:00]} 5. a4 {[%clk 0:03:02]}  Be6 {[%clk 0:02:44]} 6. e4 {[%clk 0:02:59]}  Na6 {[%clk 0:02:40]} 7. Ng5 {[%clk 0:02:58]}  Bg4 {[%clk 0:02:39]} 8. f3 {[%clk 0:02:57]}  Bh5 {[%clk 0:02:34]} 9. Bxc4 {[%clk 0:02:56]}  Nc7 {[%clk 0:02:31]} 10. h4 {[%clk 0:02:51]}  h6 {[%clk 0:02:29]} 11. Nh3 {[%clk 0:02:48]}  e6 {[%clk 0:02:24]} 12. Nf4 {[%clk 0:02:48]}  Be7 {[%clk 0:02:09]} 13. e5 {[%clk 0:02:38]}  Nfd5 {[%clk 0:01:37]} 14. Nxh5 {[%clk 0:02:30]}  g6 {[%clk 0:01:37]} 15. Bxd5 {[%clk 0:02:04]}  Nxd5 {[%clk 0:01:34]} 16. Nf4 {[%clk 0:02:04]}  Bxh4+ {[%clk 0:01:33]} 17. Kf1 {[%clk 0:02:03]}  Nxc3 {[%clk 0:00:51]} 18. bxc3 {[%clk 0:02:00]}  h5 {[%clk 0:00:51]} 19. Qb3 {[%clk 0:01:58]}  Rb8 {[%clk 0:00:44]} 20. Nxe6 {[%clk 0:01:44]}  fxe6 {[%clk 0:00:40]} 21. Qxe6+ {[%clk 0:01:45]}  Qe7 {[%clk 0:00:35]} 22. Qxg6+ {[%clk 0:01:45]}  Kd7 {[%clk 0:00:31]} 23. e6+ {[%clk 0:01:41]}  Kc8 {[%clk 0:00:28]} 24. Ba3 {[%clk 0:01:37]}  Qf6 {[%clk 0:00:24]} 25. Qxf6 {[%clk 0:01:24]}  Bxf6 {[%clk 0:00:15]} 26. Bd6 {[%clk 0:01:25]}  Ra8 {[%clk 0:00:15]} 27. g4 {[%clk 0:01:20]}  h4 {[%clk 0:00:13]} 28. f4 {[%clk 0:01:19]}  Rd8 {[%clk 0:00:12]} 29. Ba3 {[%clk 0:01:14]}  Kc7 {[%clk 0:00:12]} 30. g5 {[%clk 0:01:13]}  Bg7 {[%clk 0:00:12]} 31. Rxh4 {[%clk 0:01:14]}  Rd5 {[%clk 0:00:12]} 32. Rh7 {[%clk 0:01:14]}  Rg8 {[%clk 0:00:12]} 33. Kg2 {[%clk 0:01:13]}  Kd8 {[%clk 0:00:11]} 34. Rah1 {[%clk 0:01:12]}  Rf5 {[%clk 0:00:11]} 35. Kg3 {[%clk 0:01:11]}  Bf8 {[%clk 0:00:09]} 36. Rd7+ {[%clk 0:01:11]}  Ke8 {[%clk 0:00:09]} 37. Bxf8 {[%clk 0:01:11]}  Rgxf8 {[%clk 0:00:10]} 38. Rh4 {[%clk 0:01:09]}  Ra5 {[%clk 0:00:09]} 39. Rxb7 {[%clk 0:01:09]}  Rxa4 {[%clk 0:00:09]} 40. Rb8+ {[%clk 0:01:10]}  Ke7 {[%clk 0:00:09]} 41. Rh7+ {[%clk 0:01:10]} 1-0


[Site "https://www.chess.com"]

[Event "Early Titled Tuesday Blitz | February 8 2022"]
[White "Omariev, Maksim"]
[Black "Papasimakopoulos, Alexandros"]
[WhiteFideId "4193423"]
[BlackFideId "4244125"]
[WhiteElo "2526"]
[BlackElo "2340"]
[Result "0-1"]
[Round "04"]
[TimeControl "180+1"]
[Date "2022.02.08"]
[WhiteClock "0:00:02"]
[BlackClock "0:00:37"]

1. e4 {[%clk 0:03:00]}  e6 {[%clk 0:02:55]} 2. d4 {[%clk 0:03:00]}  d5 {[%clk 0:02:52]} 3. Nc3 {[%clk 0:02:59]}  Bb4 {[%clk 0:02:51]} 4. exd5 {[%clk 0:02:58]}  exd5 {[%clk 0:02:51]} 5. Bd3 {[%clk 0:02:59]}  Nc6 {[%clk 0:02:51]} 6. a3 {[%clk 0:02:59]}  Bxc3+ {[%clk 0:02:50]} 7. bxc3 {[%clk 0:03:00]}  Nf6 {[%clk 0:02:51]} 8. h3 {[%clk 0:02:59]}  O-O {[%clk 0:02:48]} 9. Qf3 {[%clk 0:02:59]}  Re8+ {[%clk 0:02:48]} 10. Ne2 {[%clk 0:03:00]}  Ne4 {[%clk 0:02:49]} 11. O-O {[%clk 0:02:58]}  Be6 {[%clk 0:02:41]} 12. c4 {[%clk 0:02:56]}  h6 {[%clk 0:02:31]} 13. cxd5 {[%clk 0:02:09]}  Bxd5 {[%clk 0:02:30]} 14. Qf4 {[%clk 0:02:09]}  Na5 {[%clk 0:02:22]} 15. Re1 {[%clk 0:01:12]}  Nc4 {[%clk 0:02:19]} 16. Kf1 {[%clk 0:01:05]}  Qd7 {[%clk 0:02:02]} 17. Rb1 {[%clk 0:00:47]}  g5 {[%clk 0:02:02]} 18. Qh2 {[%clk 0:00:41]}  Ned2+ {[%clk 0:02:02]} 19. Bxd2 {[%clk 0:00:42]}  Nxd2+ {[%clk 0:02:03]} 20. Kg1 {[%clk 0:00:43]}  Nxb1 {[%clk 0:02:03]} 21. Rxb1 {[%clk 0:00:44]}  c6 {[%clk 0:01:50]} 22. Qg3 {[%clk 0:00:36]}  Be4 {[%clk 0:01:44]} 23. Nc3 {[%clk 0:00:22]}  Bxd3 {[%clk 0:01:44]} 24. Qxd3 {[%clk 0:00:23]}  Rad8 {[%clk 0:01:44]} 25. Rd1 {[%clk 0:00:22]}  Qe7 {[%clk 0:01:29]} 26. g4 {[%clk 0:00:16]}  Qxa3 {[%clk 0:01:27]} 27. Qc4 {[%clk 0:00:13]}  Qd6 {[%clk 0:01:23]} 28. Kg2 {[%clk 0:00:12]}  a5 {[%clk 0:01:19]} 29. f3 {[%clk 0:00:11]}  b5 {[%clk 0:01:19]} 30. Qd3 {[%clk 0:00:09]}  a4 {[%clk 0:01:20]} 31. Ne4 {[%clk 0:00:09]}  Qe6 {[%clk 0:01:17]} 32. Ng3 {[%clk 0:00:06]}  Rd7 {[%clk 0:01:10]} 33. Rd2 {[%clk 0:00:05]}  Ra8 {[%clk 0:01:07]} 34. Re2 {[%clk 0:00:05]}  Qf6 {[%clk 0:01:03]} 35. Nh5 {[%clk 0:00:04]}  Qxd4 {[%clk 0:00:59]} 36. Qf5 {[%clk 0:00:04]}  Rd6 {[%clk 0:00:55]} 37. Re7 {[%clk 0:00:05]}  Rf8 {[%clk 0:00:45]} 38. Ng3 {[%clk 0:00:02]}  Qd5 {[%clk 0:00:37]} 39. Qxd5 {[%clk 0:00:01]}  cxd5 {[%clk 0:00:34]} 40. Nf5 {[%clk 0:00:02]}  Ra6 {[%clk 0:00:34]} 41. h4 {[%clk 0:00:01]}  a3 {[%clk 0:00:34]} 42. hxg5 {[%clk 0:00:01]}  hxg5 {[%clk 0:00:35]} 43. f4 {[%clk 0:00:01]}  a2 {[%clk 0:00:35]} 44. fxg5 {[%clk 0:00:01]}  a1=Q {[%clk 0:00:36]} 45. Nh6+ {[%clk 0:00:02]}  Rxh6 {[%clk 0:00:36]} 46. gxh6 {[%clk 0:00:02]}  Qf6 {[%clk 0:00:37]} 47. Re2 {[%clk 0:00:02]}  Qxh6 {[%clk 0:00:37]} 0-1


[Site "https://www.chess.com"]

[Event "Early Titled Tuesday Blitz | February 8 2022"]
[White "Osmonbekov, Talaibek"]
[Black "Tuleyeva-Aketayeva, Dana"]
[WhiteFideId "2017253"]
[BlackFideId "13701932"]
[WhiteElo "2135"]
[BlackElo "1944"]
[Result "1-0"]
[Round "04"]
[TimeControl "180+1"]
[Date "2022.02.08"]
[WhiteClock "0:01:02"]
[BlackClock "0:00:39"]

1. d4 {[%clk 0:03:00]}  Nf6 {[%clk 0:02:59]} 2. Nc3 {[%clk 0:03:00]}  e6 {[%clk 0:03:00]} 3. e4 {[%clk 0:02:59]}  c5 {[%clk 0:02:57]} 4. d5 {[%clk 0:02:59]}  exd5 {[%clk 0:02:57]} 5. exd5 {[%clk 0:02:59]}  d6 {[%clk 0:02:58]} 6. Be2 {[%clk 0:02:59]}  g6 {[%clk 0:02:58]} 7. Nf3 {[%clk 0:03:00]}  Bg7 {[%clk 0:02:59]} 8. Nd2 {[%clk 0:03:00]}  O-O {[%clk 0:02:59]} 9. Nc4 {[%clk 0:03:00]}  a6 {[%clk 0:02:58]} 10. a4 {[%clk 0:03:00]}  Ne8 {[%clk 0:02:46]} 11. O-O {[%clk 0:02:52]}  Nd7 {[%clk 0:02:47]} 12. f4 {[%clk 0:02:51]}  Nb6 {[%clk 0:02:46]} 13. a5 {[%clk 0:02:43]}  Bd4+ {[%clk 0:02:40]} 14. Kh1 {[%clk 0:02:42]}  Nxc4 {[%clk 0:02:40]} 15. Bxc4 {[%clk 0:02:43]}  b5 {[%clk 0:02:35]} 16. axb6 {[%clk 0:02:40]}  Qxb6 {[%clk 0:02:35]} 17. Ne2 {[%clk 0:02:21]}  Bg7 {[%clk 0:02:34]} 18. c3 {[%clk 0:02:20]}  Nc7 {[%clk 0:02:28]} 19. f5 {[%clk 0:02:10]}  Bxf5 {[%clk 0:02:23]} 20. Rxf5 {[%clk 0:02:09]}  gxf5 {[%clk 0:02:23]} 21. Nf4 {[%clk 0:02:08]}  Rfe8 {[%clk 0:02:11]} 22. Nh5 {[%clk 0:02:06]}  Re4 {[%clk 0:02:04]} 23. Nxg7 {[%clk 0:01:54]}  Kxg7 {[%clk 0:02:04]} 24. Bd3 {[%clk 0:01:53]}  Rae8 {[%clk 0:01:55]} 25. Bxe4 {[%clk 0:01:39]}  Rxe4 {[%clk 0:01:55]} 26. b3 {[%clk 0:01:37]}  Qxb3 {[%clk 0:01:50]} 27. Bh6+ {[%clk 0:01:31]}  Kxh6 {[%clk 0:01:44]} 28. Qxb3 {[%clk 0:01:31]}  Nb5 {[%clk 0:01:42]} 29. h3 {[%clk 0:01:26]}  Re3 {[%clk 0:01:37]} 30. Rxa6 {[%clk 0:01:23]}  Nxc3 {[%clk 0:01:32]} 31. Rxd6+ {[%clk 0:01:23]}  Kg7 {[%clk 0:01:28]} 32. Qc4 {[%clk 0:01:21]}  Re1+ {[%clk 0:01:24]} 33. Kh2 {[%clk 0:01:20]}  Ne4 {[%clk 0:01:24]} 34. Rd8 {[%clk 0:01:12]}  h5 {[%clk 0:01:14]} 35. d6 {[%clk 0:01:06]}  h4 {[%clk 0:01:10]} 36. d7 {[%clk 0:01:05]}  Nf2 {[%clk 0:00:43]} 37. Qc3+ {[%clk 0:01:01]}  f6 {[%clk 0:00:39]} 38. Qxe1 {[%clk 0:01:02]} 1-0


[Site "https://www.chess.com"]

[Event "Early Titled Tuesday Blitz | February 8 2022"]
[White "Papp, Petra"]
[Black "Prieto Aranguren, Alain"]
[WhiteFideId "739049"]
[BlackFideId "2268906"]
[WhiteElo "2259"]
[BlackElo "2235"]
[Result "0-1"]
[Round "04"]
[TimeControl "180+1"]
[Date "2022.02.08"]
[WhiteClock "0:00:01"]
[BlackClock "0:00:12"]

1. d4 {[%clk 0:03:00]}  Nf6 {[%clk 0:02:57]} 2. c4 {[%clk 0:02:55]}  c5 {[%clk 0:02:57]} 3. d5 {[%clk 0:02:51]}  e6 {[%clk 0:02:57]} 4. Nc3 {[%clk 0:02:50]}  exd5 {[%clk 0:02:57]} 5. cxd5 {[%clk 0:02:51]}  Bd6 {[%clk 0:02:57]} 6. g3 {[%clk 0:02:48]}  O-O {[%clk 0:02:58]} 7. Bg2 {[%clk 0:02:48]}  Re8 {[%clk 0:02:57]} 8. Nf3 {[%clk 0:02:48]}  Bc7 {[%clk 0:02:57]} 9. d6 {[%clk 0:02:15]}  Ba5 {[%clk 0:02:56]} 10. O-O {[%clk 0:02:15]}  Nc6 {[%clk 0:02:42]} 11. Bf4 {[%clk 0:02:05]}  b6 {[%clk 0:02:36]} 12. Nb5 {[%clk 0:02:00]}  Ba6 {[%clk 0:02:33]} 13. a4 {[%clk 0:01:57]}  Rc8 {[%clk 0:02:31]} 14. Nd2 {[%clk 0:01:12]}  Nd4 {[%clk 0:02:24]} 15. Nxd4 {[%clk 0:00:57]}  cxd4 {[%clk 0:02:24]} 16. Bf3 {[%clk 0:00:56]}  Re6 {[%clk 0:01:49]} 17. Nb3 {[%clk 0:00:50]}  d3 {[%clk 0:01:48]} 18. exd3 {[%clk 0:00:44]}  Qe8 {[%clk 0:01:45]} 19. Nxa5 {[%clk 0:00:40]}  bxa5 {[%clk 0:01:44]} 20. Ra3 {[%clk 0:00:35]}  Rb8 {[%clk 0:01:43]} 21. Rb3 {[%clk 0:00:35]}  h6 {[%clk 0:01:39]} 22. Qc2 {[%clk 0:00:23]}  g5 {[%clk 0:01:35]} 23. Be3 {[%clk 0:00:21]}  Rxd6 {[%clk 0:01:35]} 24. Bxa7 {[%clk 0:00:18]}  Rxb3 {[%clk 0:01:32]} 25. Qxb3 {[%clk 0:00:19]}  Rxd3 {[%clk 0:01:29]} 26. Qb6 {[%clk 0:00:19]}  Qe6 {[%clk 0:01:23]} 27. Qd8+ {[%clk 0:00:13]}  Kg7 {[%clk 0:01:20]} 28. Bg2 {[%clk 0:00:13]}  Rb3 {[%clk 0:01:12]} 29. Rd1 {[%clk 0:00:07]}  Rd3 {[%clk 0:00:46]} 30. Rxd3 {[%clk 0:00:03]}  Bxd3 {[%clk 0:00:46]} 31. h3 {[%clk 0:00:03]}  Qb3 {[%clk 0:00:38]} 32. Bd4 {[%clk 0:00:03]}  Qe6 {[%clk 0:00:31]} 33. Qxa5 {[%clk 0:00:03]}  Kh7 {[%clk 0:00:28]} 34. Qd2 {[%clk 0:00:03]}  Bg6 {[%clk 0:00:27]} 35. Bxf6 {[%clk 0:00:03]}  Qxf6 {[%clk 0:00:26]} 36. Qxd7 {[%clk 0:00:03]}  Qxb2 {[%clk 0:00:24]} 37. Qb5 {[%clk 0:00:03]}  Qd2 {[%clk 0:00:19]} 38. Bf1 {[%clk 0:00:03]}  Qe1 {[%clk 0:00:17]} 39. a5 {[%clk 0:00:02]}  Be4 {[%clk 0:00:16]} 40. a6 {[%clk 0:00:02]}  Qc3 {[%clk 0:00:14]} 41. Qc4 {[%clk 0:00:03]}  Qf3 {[%clk 0:00:13]} 42. Bg2 {[%clk 0:00:01]}  Qd1+ {[%clk 0:00:12]} 43. Kh2 {[%clk 0:00:01]}  Bd3 {[%clk 0:00:12]} 0-1


[Site "https://www.chess.com"]

[Event "Early Titled Tuesday Blitz | February 8 2022"]
[White "Paravyan, David"]
[Black "Garcia Martin, Marta"]
[WhiteFideId "4194985"]
[BlackFideId "32084030"]
[WhiteElo "2569"]
[BlackElo "2102"]
[Result "0-1"]
[Round "04"]
[TimeControl "180+1"]
[Date "2022.02.08"]
[WhiteClock "0:00:00"]
[BlackClock "0:00:13"]

1. e4 {[%clk 0:03:00]}  b6 {[%clk 0:02:39]} 2. d4 {[%clk 0:03:00]}  Bb7 {[%clk 0:02:33]} 3. Nc3 {[%clk 0:03:00]}  e6 {[%clk 0:02:33]} 4. Bd3 {[%clk 0:03:00]}  Nf6 {[%clk 0:02:33]} 5. Nge2 {[%clk 0:02:59]}  d5 {[%clk 0:02:31]} 6. e5 {[%clk 0:02:59]}  Nfd7 {[%clk 0:02:31]} 7. Nb1 {[%clk 0:02:49]}  c5 {[%clk 0:02:30]} 8. c3 {[%clk 0:02:49]}  Ba6 {[%clk 0:02:31]} 9. Bxa6 {[%clk 0:02:47]}  Nxa6 {[%clk 0:02:32]} 10. Qd3 {[%clk 0:02:45]}  Qc8 {[%clk 0:02:19]} 11. O-O {[%clk 0:02:44]}  cxd4 {[%clk 0:02:19]} 12. cxd4 {[%clk 0:02:45]}  Nb4 {[%clk 0:02:18]} 13. Qd1 {[%clk 0:02:09]}  Nc2 {[%clk 0:02:17]} 14. Nbc3 {[%clk 0:02:08]}  Nxa1 {[%clk 0:02:17]} 15. Bg5 {[%clk 0:02:05]}  h6 {[%clk 0:01:54]} 16. Bh4 {[%clk 0:02:03]}  b5 {[%clk 0:01:36]} 17. Nxb5 {[%clk 0:00:39]}  Rb8 {[%clk 0:00:51]} 18. Nbc3 {[%clk 0:00:09]}  Rxb2 {[%clk 0:00:48]} 19. Qxa1 {[%clk 0:00:09]}  Ba3 {[%clk 0:00:47]} 20. Qd1 {[%clk 0:00:05]}  O-O {[%clk 0:00:44]} 21. Qa4 {[%clk 0:00:05]}  Bb4 {[%clk 0:00:34]} 22. Rc1 {[%clk 0:00:05]}  Bxc3 {[%clk 0:00:31]} 23. Qd1 {[%clk 0:00:04]}  Rd2 {[%clk 0:00:28]} 24. Qf1 {[%clk 0:00:02]}  Rd3 {[%clk 0:00:19]} 25. Be7 {[%clk 0:00:03]}  Re8 {[%clk 0:00:17]} 26. Ba3 {[%clk 0:00:02]}  Qc4 {[%clk 0:00:15]} 27. Bb2 {[%clk 0:00:02]}  Bxb2 {[%clk 0:00:12]} 28. Rxc4 {[%clk 0:00:00]}  dxc4 {[%clk 0:00:13]} 0-1


[Site "https://www.chess.com"]

[Event "Early Titled Tuesday Blitz | February 8 2022"]
[White "Petesch, Gabriel"]
[Black "Tarasova, Viktoriya"]
[WhiteFideId "2032465"]
[BlackFideId "4175840"]
[WhiteElo "2374"]
[BlackElo "2182"]
[Result "1-0"]
[Round "04"]
[TimeControl "180+1"]
[Date "2022.02.08"]
[WhiteClock "0:00:04"]
[BlackClock "0:00:02"]

1. g3 {[%clk 0:03:00]}  Nf6 {[%clk 0:02:58]} 2. Bg2 {[%clk 0:03:00]}  d5 {[%clk 0:02:54]} 3. Nf3 {[%clk 0:03:00]}  c6 {[%clk 0:02:53]} 4. O-O {[%clk 0:03:01]}  Bg4 {[%clk 0:02:52]} 5. c4 {[%clk 0:03:00]}  Nbd7 {[%clk 0:02:51]} 6. cxd5 {[%clk 0:02:55]}  cxd5 {[%clk 0:02:49]} 7. d3 {[%clk 0:02:55]}  e6 {[%clk 0:02:44]} 8. Nc3 {[%clk 0:02:55]}  Bd6 {[%clk 0:02:34]} 9. Bd2 {[%clk 0:02:50]}  O-O {[%clk 0:02:33]} 10. Rc1 {[%clk 0:02:49]}  a6 {[%clk 0:02:32]} 11. Re1 {[%clk 0:02:36]}  Rc8 {[%clk 0:02:30]} 12. h3 {[%clk 0:02:35]}  Bh5 {[%clk 0:02:29]} 13. Qb3 {[%clk 0:02:30]}  Qb6 {[%clk 0:02:27]} 14. Qxb6 {[%clk 0:02:01]}  Nxb6 {[%clk 0:02:24]} 15. Nd4 {[%clk 0:01:56]}  Bg6 {[%clk 0:02:19]} 16. Bg5 {[%clk 0:01:42]}  Nfd7 {[%clk 0:02:16]} 17. Nb3 {[%clk 0:01:39]}  h6 {[%clk 0:02:13]} 18. Be3 {[%clk 0:01:37]}  Rc7 {[%clk 0:01:57]} 19. Bd4 {[%clk 0:00:58]}  Rfc8 {[%clk 0:01:55]} 20. Rb1 {[%clk 0:00:57]}  f6 {[%clk 0:01:34]} 21. h4 {[%clk 0:00:57]}  Bf7 {[%clk 0:01:33]} 22. Bh3 {[%clk 0:00:52]}  Na8 {[%clk 0:01:21]} 23. Be3 {[%clk 0:00:45]}  b5 {[%clk 0:01:14]} 24. a3 {[%clk 0:00:41]}  Nab6 {[%clk 0:01:12]} 25. Nd4 {[%clk 0:00:31]}  Re8 {[%clk 0:01:08]} 26. Rec1 {[%clk 0:00:26]}  Kf8 {[%clk 0:00:45]} 27. Na2 {[%clk 0:00:25]}  Rxc1+ {[%clk 0:00:25]} 28. Rxc1 {[%clk 0:00:26]}  f5 {[%clk 0:00:22]} 29. Rc6 {[%clk 0:00:23]}  Be5 {[%clk 0:00:20]} 30. Nf3 {[%clk 0:00:22]}  Na4 {[%clk 0:00:11]} 31. b3 {[%clk 0:00:20]}  Nb2 {[%clk 0:00:10]} 32. Rxa6 {[%clk 0:00:18]}  Nd1 {[%clk 0:00:09]} 33. Nxe5 {[%clk 0:00:17]}  Nxe5 {[%clk 0:00:07]} 34. Bd4 {[%clk 0:00:18]}  Nd7 {[%clk 0:00:07]} 35. Kf1 {[%clk 0:00:18]}  Rc8 {[%clk 0:00:07]} 36. Ke1 {[%clk 0:00:18]}  Rc2 {[%clk 0:00:05]} 37. Nb4 {[%clk 0:00:18]}  Rc1 {[%clk 0:00:05]} 38. Kd2 {[%clk 0:00:18]}  Rb1 {[%clk 0:00:06]} 39. Kc2 {[%clk 0:00:18]}  e5 {[%clk 0:00:04]} 40. Kxb1 {[%clk 0:00:15]}  exd4 {[%clk 0:00:05]} 41. Bxf5 {[%clk 0:00:12]}  Nc3+ {[%clk 0:00:05]} 42. Kc2 {[%clk 0:00:12]}  Ne5 {[%clk 0:00:05]} 43. e3 {[%clk 0:00:11]}  Ne2 {[%clk 0:00:04]} 44. Ra8+ {[%clk 0:00:10]}  Ke7 {[%clk 0:00:04]} 45. Nc6+ {[%clk 0:00:11]}  Nxc6 {[%clk 0:00:03]} 46. Kd2 {[%clk 0:00:10]}  Nc3 {[%clk 0:00:02]} 47. exd4 {[%clk 0:00:09]}  Nb1+ {[%clk 0:00:03]} 48. Kc2 {[%clk 0:00:09]}  Nxd4+ {[%clk 0:00:03]} 49. Kxb1 {[%clk 0:00:09]}  Nxf5 {[%clk 0:00:04]} 50. a4 {[%clk 0:00:09]}  bxa4 {[%clk 0:00:04]} 51. bxa4 {[%clk 0:00:10]}  d4 {[%clk 0:00:04]} 52. a5 {[%clk 0:00:10]}  Bd5 {[%clk 0:00:05]} 53. Ra7+ {[%clk 0:00:09]}  Kd6 {[%clk 0:00:05]} 54. Kc2 {[%clk 0:00:07]}  Kc6 {[%clk 0:00:05]} 55. g4 {[%clk 0:00:05]}  Nxh4 {[%clk 0:00:04]} 56. Rxg7 {[%clk 0:00:04]}  Kb5 {[%clk 0:00:05]} 57. f4 {[%clk 0:00:04]}  Kxa5 {[%clk 0:00:05]} 58. Rh7 {[%clk 0:00:05]}  Nf3 {[%clk 0:00:04]} 59. Rxh6 {[%clk 0:00:05]}  Ne1+ {[%clk 0:00:05]} 60. Kd2 {[%clk 0:00:04]}  Nf3+ {[%clk 0:00:05]} 61. Ke2 {[%clk 0:00:05]}  Kb4 {[%clk 0:00:03]} 62. g5 {[%clk 0:00:04]}  Kc3 {[%clk 0:00:03]} 63. Rd6 {[%clk 0:00:04]}  Ba8 {[%clk 0:00:02]} 64. g6 {[%clk 0:00:03]}  Nh4 {[%clk 0:00:01]} 65. g7 {[%clk 0:00:03]}  Bf3+ {[%clk 0:00:02]} 66. Kf2 {[%clk 0:00:03]}  Kxd3 {[%clk 0:00:01]} 67. g8=Q {[%clk 0:00:03]}  Kd2 {[%clk 0:00:02]} 68. Qa2+ {[%clk 0:00:03]}  Kc3 {[%clk 0:00:02]} 69. Qa3+ {[%clk 0:00:03]}  Kc4 {[%clk 0:00:03]} 70. Qa4+ {[%clk 0:00:03]}  Kc5 {[%clk 0:00:03]} 71. Rd8 {[%clk 0:00:03]}  d3 {[%clk 0:00:03]} 72. Ra8 {[%clk 0:00:03]}  Bxa8 {[%clk 0:00:01]} 73. Qxa8 {[%clk 0:00:04]}  d2 {[%clk 0:00:02]} 74. Qd8 {[%clk 0:00:04]}  Kc4 {[%clk 0:00:02]} 75. Qxd2 {[%clk 0:00:04]}  Nf5 {[%clk 0:00:02]} 76. Qc2+ {[%clk 0:00:04]} 1-0


[Site "https://www.chess.com"]

[Event "Early Titled Tuesday Blitz | February 8 2022"]
[White "Pinheiro, Iung Alicio de O."]
[Black "Gupta, Abhijeet"]
[WhiteFideId "2104350"]
[BlackFideId "5010608"]
[WhiteElo "2607"]
[BlackElo "2549"]
[Result "0-1"]
[Round "04"]
[TimeControl "180+1"]
[Date "2022.02.08"]
[WhiteClock "0:00:01"]
[BlackClock "0:00:45"]

1. e4 {[%clk 0:02:59]}  c5 {[%clk 0:02:59]} 2. Nf3 {[%clk 0:02:59]}  d6 {[%clk 0:03:00]} 3. c3 {[%clk 0:02:59]}  Nf6 {[%clk 0:03:00]} 4. h3 {[%clk 0:02:57]}  Nc6 {[%clk 0:02:59]} 5. Bd3 {[%clk 0:02:57]}  d5 {[%clk 0:02:58]} 6. exd5 {[%clk 0:02:57]}  Qxd5 {[%clk 0:02:54]} 7. Qe2 {[%clk 0:02:55]}  Qe6 {[%clk 0:02:41]} 8. Bb5 {[%clk 0:02:13]}  Qxe2+ {[%clk 0:02:37]} 9. Kxe2 {[%clk 0:02:14]}  Bd7 {[%clk 0:02:37]} 10. Na3 {[%clk 0:01:34]}  a6 {[%clk 0:02:29]} 11. Bc4 {[%clk 0:01:27]}  b5 {[%clk 0:02:26]} 12. Bb3 {[%clk 0:01:26]}  c4 {[%clk 0:02:25]} 13. Bc2 {[%clk 0:01:26]}  e5 {[%clk 0:02:25]} 14. b3 {[%clk 0:01:22]}  e4 {[%clk 0:02:02]} 15. Ng5 {[%clk 0:00:56]}  Bf5 {[%clk 0:01:59]} 16. g4 {[%clk 0:00:55]}  Bg6 {[%clk 0:01:57]} 17. Re1 {[%clk 0:00:47]}  O-O-O {[%clk 0:01:36]} 18. h4 {[%clk 0:00:47]}  Nxg4 {[%clk 0:01:30]} 19. Bxe4 {[%clk 0:00:37]}  Bxe4 {[%clk 0:01:27]} 20. Nxe4 {[%clk 0:00:38]}  f5 {[%clk 0:01:16]} 21. Ng5 {[%clk 0:00:37]}  Re8+ {[%clk 0:01:15]} 22. Kf1 {[%clk 0:00:23]}  Nh2+ {[%clk 0:01:14]} 23. Kg2 {[%clk 0:00:23]}  Rxe1 {[%clk 0:01:14]} 24. Nc2 {[%clk 0:00:18]}  Rxc1 {[%clk 0:01:01]} 25. Rxc1 {[%clk 0:00:18]}  Ng4 {[%clk 0:01:02]} 26. bxc4 {[%clk 0:00:17]}  bxc4 {[%clk 0:01:02]} 27. Rb1 {[%clk 0:00:17]}  Be7 {[%clk 0:00:57]} 28. Ne6 {[%clk 0:00:16]}  Kd7 {[%clk 0:00:54]} 29. Nf4 {[%clk 0:00:12]}  Rb8 {[%clk 0:00:54]} 30. Rxb8 {[%clk 0:00:04]}  Nxb8 {[%clk 0:00:55]} 31. h5 {[%clk 0:00:04]}  Nc6 {[%clk 0:00:53]} 32. f3 {[%clk 0:00:03]}  Nge5 {[%clk 0:00:52]} 33. Nd5 {[%clk 0:00:03]}  Bc5 {[%clk 0:00:48]} 34. f4 {[%clk 0:00:01]}  Nd3 {[%clk 0:00:45]} 0-1


[Site "https://www.chess.com"]

[Event "Early Titled Tuesday Blitz | February 8 2022"]
[White "Pniaczek, Marek"]
[Black "Potapova, Margarita"]
[WhiteFideId "21800421"]
[BlackFideId "14126869"]
[WhiteElo "2138"]
[BlackElo "2209"]
[Result "0-1"]
[Round "04"]
[TimeControl "180+1"]
[Date "2022.02.08"]
[WhiteClock "0:00:07"]
[BlackClock "0:00:09"]

1. e4 {[%clk 0:03:00]}  c5 {[%clk 0:02:59]} 2. Nf3 {[%clk 0:03:00]}  d6 {[%clk 0:02:59]} 3. Bb5+ {[%clk 0:03:00]}  Nd7 {[%clk 0:02:57]} 4. d4 {[%clk 0:03:00]}  cxd4 {[%clk 0:02:58]} 5. Qxd4 {[%clk 0:03:01]}  a6 {[%clk 0:02:59]} 6. Bxd7+ {[%clk 0:03:00]}  Bxd7 {[%clk 0:03:00]} 7. O-O {[%clk 0:03:01]}  e5 {[%clk 0:02:59]} 8. Qd3 {[%clk 0:03:00]}  h6 {[%clk 0:03:00]} 9. c4 {[%clk 0:03:00]}  b5 {[%clk 0:03:00]} 10. Na3 {[%clk 0:02:59]}  Rb8 {[%clk 0:02:55]} 11. Be3 {[%clk 0:02:41]}  Nf6 {[%clk 0:02:52]} 12. Rfd1 {[%clk 0:02:20]}  Be7 {[%clk 0:02:50]} 13. cxb5 {[%clk 0:02:18]}  axb5 {[%clk 0:02:49]} 14. Nc2 {[%clk 0:02:18]}  b4 {[%clk 0:02:45]} 15. a3 {[%clk 0:02:16]}  Bb5 {[%clk 0:02:39]} 16. Qd2 {[%clk 0:02:07]}  Nxe4 {[%clk 0:02:34]} 17. Qxb4 {[%clk 0:02:07]}  d5 {[%clk 0:02:16]} 18. Qe1 {[%clk 0:02:07]}  O-O {[%clk 0:01:52]} 19. Nb4 {[%clk 0:02:05]}  Bxb4 {[%clk 0:01:43]} 20. axb4 {[%clk 0:02:05]}  Re8 {[%clk 0:01:38]} 21. Nd2 {[%clk 0:02:04]}  Nf6 {[%clk 0:01:29]} 22. Bc5 {[%clk 0:02:00]}  d4 {[%clk 0:01:23]} 23. Nb3 {[%clk 0:01:58]}  Qd5 {[%clk 0:01:19]} 24. Ra3 {[%clk 0:01:39]}  Bc6 {[%clk 0:01:19]} 25. f3 {[%clk 0:01:34]}  Ng4 {[%clk 0:01:17]} 26. Na5 {[%clk 0:01:22]}  Ba8 {[%clk 0:01:06]} 27. Qg3 {[%clk 0:01:15]}  Nf6 {[%clk 0:01:03]} 28. Rad3 {[%clk 0:01:01]}  Qe6 {[%clk 0:00:59]} 29. b3 {[%clk 0:00:55]}  Nd5 {[%clk 0:00:53]} 30. Nc4 {[%clk 0:00:43]}  Nf4 {[%clk 0:00:52]} 31. R3d2 {[%clk 0:00:38]}  Bd5 {[%clk 0:00:53]} 32. Bxd4 {[%clk 0:00:29]}  Bxc4 {[%clk 0:00:31]} 33. bxc4 {[%clk 0:00:30]}  Qxc4 {[%clk 0:00:29]} 34. Ba7 {[%clk 0:00:19]}  Ne2+ {[%clk 0:00:25]} 35. Rxe2 {[%clk 0:00:19]}  Qxe2 {[%clk 0:00:26]} 36. Re1 {[%clk 0:00:20]}  Qd2 {[%clk 0:00:15]} 37. Bxb8 {[%clk 0:00:20]}  Rxb8 {[%clk 0:00:14]} 38. Qxe5 {[%clk 0:00:20]}  Qxb4 {[%clk 0:00:13]} 39. h3 {[%clk 0:00:18]}  Qb6+ {[%clk 0:00:13]} 40. Kh2 {[%clk 0:00:18]}  Rc8 {[%clk 0:00:13]} 41. Rd1 {[%clk 0:00:17]}  Qc6 {[%clk 0:00:11]} 42. Rd6 {[%clk 0:00:16]}  Qb7 {[%clk 0:00:10]} 43. Qf5 {[%clk 0:00:15]}  Re8 {[%clk 0:00:09]} 44. Rd7 {[%clk 0:00:14]}  Qb8+ {[%clk 0:00:10]} 45. f4 {[%clk 0:00:12]}  Rf8 {[%clk 0:00:08]} 46. Qd5 {[%clk 0:00:12]}  Qxf4+ {[%clk 0:00:08]} 47. Kg1 {[%clk 0:00:11]}  Qc1+ {[%clk 0:00:08]} 48. Kh2 {[%clk 0:00:12]}  Qf4+ {[%clk 0:00:09]} 49. Kg1 {[%clk 0:00:12]}  Re8 {[%clk 0:00:08]} 50. Rd8 {[%clk 0:00:10]}  Qc1+ {[%clk 0:00:08]} 51. Kf2 {[%clk 0:00:07]}  Qf4+ {[%clk 0:00:07]} 52. Kg1 {[%clk 0:00:07]}  Qc1+ {[%clk 0:00:08]} 53. Kf2 {[%clk 0:00:07]}  Qe3+ {[%clk 0:00:08]} 54. Kf1 {[%clk 0:00:07]}  Qe1# {[%clk 0:00:09]} 0-1


[Site "https://www.chess.com"]